[Event "Titled Tuesday Blitz June 13 Late 2023"]
[White "krucki03"]
[Black "Martinez, Ayelen"]
[BlackFideId "118702"]
[WhiteElo "2466"]
[BlackElo "2074"]
[Result "1-0"]
[Round "4"]
[TimeControl "180+2"]
[Date "2023.06.13"]
[WhiteClock "0:00:20"]
[BlackClock "0:00:05"]
[Board "156"]

1. c4 {[%clk 0:03:00]}  Nf6 {[%clk 0:02:58]} 2. Nc3 {[%clk 0:03:00]}  g6 {[%clk 0:02:59]} 3. g4 {[%clk 0:02:57]}  d6 {[%clk 0:02:57]} 4. g5 {[%clk 0:02:56]}  Nfd7 {[%clk 0:02:49]} 5. b3 {[%clk 0:02:48]}  Bg7 {[%clk 0:02:49]} 6. Bb2 {[%clk 0:02:48]}  c5 {[%clk 0:02:46]} 7. Bg2 {[%clk 0:02:47]}  Nc6 {[%clk 0:02:42]} 8. h4 {[%clk 0:02:46]}  h5 {[%clk 0:02:40]} 9. e3 {[%clk 0:02:43]}  Rb8 {[%clk 0:02:19]} 10. Nge2 {[%clk 0:02:42]}  Nce5 {[%clk 0:02:17]} 11. d4 {[%clk 0:02:40]}  cxd4 {[%clk 0:02:15]} 12. exd4 {[%clk 0:02:40]}  Ng4 {[%clk 0:02:15]} 13. Qd2 {[%clk 0:02:37]}  a6 {[%clk 0:02:02]} 14. f3 {[%clk 0:02:36]}  b5 {[%clk 0:01:53]} 15. cxb5 {[%clk 0:02:31]}  Bb7 {[%clk 0:01:40]} 16. bxa6 {[%clk 0:02:19]}  Ba8 {[%clk 0:01:40]} 17. Rg1 {[%clk 0:02:03]}  Nh2 {[%clk 0:01:37]} 18. Qf4 {[%clk 0:01:52]}  e5 {[%clk 0:01:29]} 19. Qxh2 {[%clk 0:01:47]}  exd4 {[%clk 0:01:30]} 20. Qxd6 {[%clk 0:01:31]}  dxc3 {[%clk 0:01:26]} 21. Nxc3 {[%clk 0:01:30]}  Rb6 {[%clk 0:01:20]} 22. Qd3 {[%clk 0:01:21]}  Re6+ {[%clk 0:01:19]} 23. Kf1 {[%clk 0:01:18]}  Qb6 {[%clk 0:01:05]} 24. Nd5 {[%clk 0:01:12]}  Bxd5 {[%clk 0:00:57]} 25. Bxg7 {[%clk 0:01:12]}  Rg8 {[%clk 0:00:56]} 26. Qxd5 {[%clk 0:00:59]}  Qxa6+ {[%clk 0:00:53]} 27. Qc4 {[%clk 0:00:59]}  Qxc4+ {[%clk 0:00:51]} 28. bxc4 {[%clk 0:01:00]}  Rxg7 {[%clk 0:00:51]} 29. f4 {[%clk 0:01:00]}  f6 {[%clk 0:00:46]} 30. Bd5 {[%clk 0:00:59]}  Ra6 {[%clk 0:00:37]} 31. Kf2 {[%clk 0:00:49]}  fxg5 {[%clk 0:00:35]} 32. Rxg5 {[%clk 0:00:39]}  Rf6 {[%clk 0:00:32]} 33. Re1+ {[%clk 0:00:38]}  Kd8 {[%clk 0:00:30]} 34. Kg3 {[%clk 0:00:38]}  Nc5 {[%clk 0:00:20]} 35. a4 {[%clk 0:00:26]}  Nxa4 {[%clk 0:00:18]} 36. Ra1 {[%clk 0:00:24]}  Nb6 {[%clk 0:00:18]} 37. Ra6 {[%clk 0:00:20]}  Nxd5 {[%clk 0:00:18]} 38. Rxd5+ {[%clk 0:00:21]}  Ke7 {[%clk 0:00:05]} 39. Ra7+ {[%clk 0:00:20]} 1-0


[Site "https://www.chess.com"]

[Event "Titled Tuesday Blitz June 13 Late 2023"]
[White "Quirke, Jeffrey"]
[Black "SergioMoralesG"]
[WhiteFideId "2013029"]
[WhiteElo "2231"]
[BlackElo "2464"]
[Result "0-1"]
[Round "4"]
[TimeControl "180+2"]
[Date "2023.06.13"]
[WhiteClock "0:00:08"]
[BlackClock "0:00:18"]
[Board "157"]

1. e4 {[%clk 0:03:00]}  e5 {[%clk 0:02:59]} 2. d4 {[%clk 0:03:00]}  exd4 {[%clk 0:02:58]} 3. Qxd4 {[%clk 0:03:00]}  Nc6 {[%clk 0:02:58]} 4. Qe3 {[%clk 0:03:01]}  Nf6 {[%clk 0:02:49]} 5. Bd2 {[%clk 0:03:01]}  Bb4 {[%clk 0:02:37]} 6. a3 {[%clk 0:03:00]}  Bxd2+ {[%clk 0:02:35]} 7. Nxd2 {[%clk 0:03:01]}  O-O {[%clk 0:02:34]} 8. O-O-O {[%clk 0:03:00]}  Re8 {[%clk 0:02:34]} 9. Qg3 {[%clk 0:02:41]}  Nxe4 {[%clk 0:02:25]} 10. Nxe4 {[%clk 0:02:41]}  Rxe4 {[%clk 0:02:25]} 11. Bd3 {[%clk 0:02:40]}  Re8 {[%clk 0:02:21]} 12. Nf3 {[%clk 0:02:33]}  h6 {[%clk 0:02:15]} 13. Rhe1 {[%clk 0:02:25]}  d6 {[%clk 0:02:11]} 14. Rxe8+ {[%clk 0:02:22]}  Qxe8 {[%clk 0:02:11]} 15. Re1 {[%clk 0:02:20]}  Qd8 {[%clk 0:01:53]} 16. Bc4 {[%clk 0:02:09]}  Bf5 {[%clk 0:01:42]} 17. Qf4 {[%clk 0:02:03]}  Qf6 {[%clk 0:01:33]} 18. g4 {[%clk 0:01:43]}  Bd7 {[%clk 0:01:29]} 19. Qg3 {[%clk 0:01:07]}  Nd4 {[%clk 0:01:11]} 20. Nxd4 {[%clk 0:00:49]}  Qxd4 {[%clk 0:01:12]} 21. Re7 {[%clk 0:00:42]}  Qxc4 {[%clk 0:01:10]} 22. Rxd7 {[%clk 0:00:42]}  Re8 {[%clk 0:00:34]} 23. b3 {[%clk 0:00:08]}  Re1+ {[%clk 0:00:19]} 24. Kd2 {[%clk 0:00:08]}  Re2+ {[%clk 0:00:18]} 25. Kc1 {[%clk 0:00:08]}  Qxc2# {[%clk 0:00:18]} 0-1


[Site "https://www.chess.com"]

[Event "Titled Tuesday Blitz June 13 Late 2023"]
[White "Chemin, Justo Reinaldo"]
[Black "marik_spb"]
[WhiteFideId "2101580"]
[WhiteElo "1940"]
[BlackElo "2464"]
[Result "0-1"]
[Round "4"]
[TimeControl "180+2"]
[Date "2023.06.13"]
[WhiteClock "0:00:00"]
[BlackClock "0:00:12"]
[Board "158"]

1. d4 {[%clk 0:02:59]}  Nf6 {[%clk 0:02:33]} 2. Nf3 {[%clk 0:02:59]}  e6 {[%clk 0:02:31]} 3. b3 {[%clk 0:02:58]}  b6 {[%clk 0:02:30]} 4. Bb2 {[%clk 0:02:58]}  Bb7 {[%clk 0:02:31]} 5. Nbd2 {[%clk 0:02:58]}  Be7 {[%clk 0:02:31]} 6. e3 {[%clk 0:02:58]}  O-O {[%clk 0:02:30]} 7. Bd3 {[%clk 0:02:58]}  d5 {[%clk 0:02:29]} 8. O-O {[%clk 0:02:56]}  Nbd7 {[%clk 0:02:29]} 9. Qe2 {[%clk 0:02:56]}  Ne4 {[%clk 0:02:29]} 10. c4 {[%clk 0:02:50]}  f5 {[%clk 0:02:28]} 11. Rac1 {[%clk 0:02:49]}  Bb4 {[%clk 0:02:19]} 12. a3 {[%clk 0:02:42]}  Bd6 {[%clk 0:01:35]} 13. b4 {[%clk 0:02:34]}  c5 {[%clk 0:01:32]} 14. cxd5 {[%clk 0:02:31]}  exd5 {[%clk 0:01:13]} 15. dxc5 {[%clk 0:02:15]}  bxc5 {[%clk 0:01:13]} 16. bxc5 {[%clk 0:02:09]}  Ndxc5 {[%clk 0:01:12]} 17. Bb1 {[%clk 0:02:07]}  Rb8 {[%clk 0:01:00]} 18. Be5 {[%clk 0:01:00]}  Ba6 {[%clk 0:00:51]} 19. Qd1 {[%clk 0:00:53]}  Bxf1 {[%clk 0:00:40]} 20. Nxf1 {[%clk 0:00:49]}  Bxe5 {[%clk 0:00:39]} 21. Nxe5 {[%clk 0:00:48]}  Qd6 {[%clk 0:00:35]} 22. f4 {[%clk 0:00:42]}  Rxb1 {[%clk 0:00:30]} 23. Rxb1 {[%clk 0:00:41]}  Nc3 {[%clk 0:00:30]} 24. Qc2 {[%clk 0:00:38]}  Nxb1 {[%clk 0:00:29]} 25. Qxb1 {[%clk 0:00:38]}  Nd7 {[%clk 0:00:16]} 26. Nf3 {[%clk 0:00:30]}  h6 {[%clk 0:00:14]} 27. Qb7 {[%clk 0:00:21]}  Nc5 {[%clk 0:00:13]} 28. Qxa7 {[%clk 0:00:18]}  Ne6 {[%clk 0:00:11]} 29. Ne5 {[%clk 0:00:12]}  d4 {[%clk 0:00:11]} 30. exd4 {[%clk 0:00:08]}  Qxd4+ {[%clk 0:00:12]} 31. Qxd4 {[%clk 0:00:07]}  Nxd4 {[%clk 0:00:13]} 32. Ne3 {[%clk 0:00:00]}  Rb8 {[%clk 0:00:12]} 0-1


[Site "https://www.chess.com"]

[Event "Titled Tuesday Blitz June 13 Late 2023"]
[White "Florianovitz, Derlei Alex"]
[Black "Przybylski, Wojciech"]
[WhiteFideId "2114178"]
[BlackFideId "1117599"]
[WhiteElo "1953"]
[BlackElo "2228"]
[Result "1/2-1/2"]
[Round "4"]
[TimeControl "180+2"]
[Date "2023.06.13"]
[WhiteClock "0:00:10"]
[BlackClock "0:00:09"]
[Board "160"]

1. e4 {[%clk 0:03:00]}  e5 {[%clk 0:02:51]} 2. Nf3 {[%clk 0:02:59]}  Nc6 {[%clk 0:02:51]} 3. Bb5 {[%clk 0:03:00]}  a6 {[%clk 0:02:46]} 4. Ba4 {[%clk 0:02:59]}  Nf6 {[%clk 0:02:45]} 5. O-O {[%clk 0:02:58]}  b5 {[%clk 0:02:44]} 6. Bb3 {[%clk 0:02:58]}  Be7 {[%clk 0:02:45]} 7. Re1 {[%clk 0:02:58]}  O-O {[%clk 0:02:44]} 8. c3 {[%clk 0:02:59]}  d6 {[%clk 0:02:43]} 9. h3 {[%clk 0:02:58]}  Nb8 {[%clk 0:02:42]} 10. a4 {[%clk 0:02:58]}  Bb7 {[%clk 0:02:34]} 11. axb5 {[%clk 0:02:58]}  axb5 {[%clk 0:02:34]} 12. Rxa8 {[%clk 0:02:58]}  Bxa8 {[%clk 0:02:34]} 13. Bc2 {[%clk 0:02:57]}  c5 {[%clk 0:02:32]} 14. d4 {[%clk 0:02:57]}  cxd4 {[%clk 0:02:31]} 15. cxd4 {[%clk 0:02:57]}  Nbd7 {[%clk 0:02:30]} 16. Nbd2 {[%clk 0:02:51]}  Re8 {[%clk 0:02:28]} 17. Nf1 {[%clk 0:02:49]}  Bf8 {[%clk 0:02:24]} 18. Ng3 {[%clk 0:02:42]}  d5 {[%clk 0:02:23]} 19. exd5 {[%clk 0:02:25]}  exd4 {[%clk 0:02:14]} 20. Nxd4 {[%clk 0:02:20]}  Bxd5 {[%clk 0:02:07]} 21. Rxe8 {[%clk 0:02:14]}  Qxe8 {[%clk 0:02:05]} 22. Nxb5 {[%clk 0:02:14]}  Ne5 {[%clk 0:01:51]} 23. Nc7 {[%clk 0:02:13]}  Qd7 {[%clk 0:01:00]} 24. Nxd5 {[%clk 0:02:09]}  Nxd5 {[%clk 0:00:53]} 25. Be4 {[%clk 0:01:54]}  Nf6 {[%clk 0:00:46]} 26. Qxd7 {[%clk 0:01:54]}  Nexd7 {[%clk 0:00:46]} 27. Bf3 {[%clk 0:01:48]}  Ne5 {[%clk 0:00:45]} 28. Bb7 {[%clk 0:01:45]}  Nd3 {[%clk 0:00:44]} 29. Bg5 {[%clk 0:01:43]}  Nxb2 {[%clk 0:00:42]} 30. Bxf6 {[%clk 0:01:41]}  gxf6 {[%clk 0:00:42]} 31. Nf5 {[%clk 0:01:41]}  Nc4 {[%clk 0:00:40]} 32. g4 {[%clk 0:01:35]}  Bc5 {[%clk 0:00:35]} 33. Kg2 {[%clk 0:01:28]}  Kf8 {[%clk 0:00:31]} 34. Bd5 {[%clk 0:01:25]}  Ne5 {[%clk 0:00:31]} 35. f3 {[%clk 0:01:13]}  Nd3 {[%clk 0:00:29]} 36. Be4 {[%clk 0:01:11]}  Nf4+ {[%clk 0:00:22]} 37. Kg3 {[%clk 0:01:10]}  Ne6 {[%clk 0:00:22]} 38. h4 {[%clk 0:01:04]}  Bb4 {[%clk 0:00:21]} 39. h5 {[%clk 0:01:03]}  Be1+ {[%clk 0:00:20]} 40. Kg2 {[%clk 0:01:02]}  Nf4+ {[%clk 0:00:20]} 41. Kf1 {[%clk 0:01:02]}  Ba5 {[%clk 0:00:18]} 42. h6 {[%clk 0:00:45]}  Bb6 {[%clk 0:00:18]} 43. Ke1 {[%clk 0:00:36]}  Bc5 {[%clk 0:00:17]} 44. Kd2 {[%clk 0:00:35]}  Kg8 {[%clk 0:00:15]} 45. Ng3 {[%clk 0:00:30]}  Ne6 {[%clk 0:00:14]} 46. Nh5 {[%clk 0:00:25]}  Bd4 {[%clk 0:00:07]} 47. Kd3 {[%clk 0:00:25]}  Bb2 {[%clk 0:00:07]} 48. Bf5 {[%clk 0:00:20]}  Ng5 {[%clk 0:00:05]} 49. f4 {[%clk 0:00:19]}  Nh3 {[%clk 0:00:05]} 50. Ke4 {[%clk 0:00:19]}  Bc1 {[%clk 0:00:05]} 51. Nxf6+ {[%clk 0:00:18]}  Kh8 {[%clk 0:00:05]} 52. Nh5 {[%clk 0:00:17]}  Bd2 {[%clk 0:00:05]} 53. Kf3 {[%clk 0:00:11]}  Bc1 {[%clk 0:00:05]} 54. Kg3 {[%clk 0:00:12]}  Ng1 {[%clk 0:00:05]} 55. Bd3 {[%clk 0:00:10]}  Be3 {[%clk 0:00:04]} 56. Kg2 {[%clk 0:00:08]}  Bd4 {[%clk 0:00:04]} 57. Ng3 {[%clk 0:00:05]}  Kg8 {[%clk 0:00:05]} 58. Nf5 {[%clk 0:00:05]}  Bc5 {[%clk 0:00:05]} 59. Ng3 {[%clk 0:00:04]}  Kh8 {[%clk 0:00:05]} 60. Ne4 {[%clk 0:00:04]}  Bd4 {[%clk 0:00:05]} 61. Nf2 {[%clk 0:00:04]}  f6 {[%clk 0:00:05]} 62. Kxg1 {[%clk 0:00:04]}  Be3 {[%clk 0:00:06]} 63. Kg2 {[%clk 0:00:04]}  Bxf4 {[%clk 0:00:06]} 64. Nh3 {[%clk 0:00:05]}  Bxh6 {[%clk 0:00:07]} 65. Kf3 {[%clk 0:00:05]}  Kg7 {[%clk 0:00:07]} 66. Ke4 {[%clk 0:00:06]}  Bd2 {[%clk 0:00:07]} 67. Kf5 {[%clk 0:00:06]}  h6 {[%clk 0:00:07]} 68. Bc4 {[%clk 0:00:05]}  Bc1 {[%clk 0:00:07]} 69. Be6 {[%clk 0:00:06]}  Bd2 {[%clk 0:00:06]} 70. Nf2 {[%clk 0:00:06]}  Be3 {[%clk 0:00:06]} 71. Ne4 {[%clk 0:00:07]}  h5 {[%clk 0:00:06]} 72. gxh5 {[%clk 0:00:07]}  Kh6 {[%clk 0:00:07]} 73. Nxf6 {[%clk 0:00:07]}  Bd4 {[%clk 0:00:07]} 74. Bf7 {[%clk 0:00:07]}  Bxf6 {[%clk 0:00:07]} 75. Kxf6 {[%clk 0:00:07]}  Kh7 {[%clk 0:00:08]} 76. Bg6+ {[%clk 0:00:08]}  Kh8 {[%clk 0:00:08]} 77. h6 {[%clk 0:00:09]}  Kg8 {[%clk 0:00:09]} 78. h7+ {[%clk 0:00:09]}  Kh8 {[%clk 0:00:09]} 79. Kf7 {[%clk 0:00:10]} 1/2-1/2


[Site "https://www.chess.com"]

[Event "Titled Tuesday Blitz June 13 Late 2023"]
[White "Bettalli, Francesco"]
[Black "Djordjevic, Dejan N"]
[WhiteFideId "2816453"]
[BlackFideId "913316"]
[WhiteElo "2216"]
[BlackElo "2261"]
[Result "1-0"]
[Round "4"]
[TimeControl "180+2"]
[Date "2023.06.13"]
[WhiteClock "0:00:39"]
[BlackClock "0:00:00"]
[Board "161"]

1. d4 {[%clk 0:03:00]}  Nf6 {[%clk 0:02:56]} 2. Nc3 {[%clk 0:03:00]}  d6 {[%clk 0:02:55]} 3. e4 {[%clk 0:02:59]}  g6 {[%clk 0:02:55]} 4. Bf4 {[%clk 0:02:56]}  Bg7 {[%clk 0:02:55]} 5. Qd2 {[%clk 0:02:52]}  h6 {[%clk 0:02:52]} 6. O-O-O {[%clk 0:02:51]}  a6 {[%clk 0:02:50]} 7. h4 {[%clk 0:02:49]}  b5 {[%clk 0:02:49]} 8. a3 {[%clk 0:02:48]}  Bb7 {[%clk 0:02:47]} 9. f3 {[%clk 0:02:47]}  Nfd7 {[%clk 0:02:02]} 10. Nge2 {[%clk 0:02:44]}  c5 {[%clk 0:02:01]} 11. g4 {[%clk 0:02:37]}  Nc6 {[%clk 0:01:54]} 12. Be3 {[%clk 0:02:31]}  b4 {[%clk 0:01:53]} 13. Na4 {[%clk 0:02:29]}  bxa3 {[%clk 0:01:49]} 14. dxc5 {[%clk 0:02:17]}  axb2+ {[%clk 0:01:49]} 15. Kb1 {[%clk 0:02:17]}  Nce5 {[%clk 0:01:33]} 16. Qc3 {[%clk 0:01:50]}  O-O {[%clk 0:01:14]} 17. Qb3 {[%clk 0:01:42]}  Rb8 {[%clk 0:01:08]} 18. Nb6 {[%clk 0:01:39]}  Nxf3 {[%clk 0:00:55]} 19. Bg2 {[%clk 0:01:38]}  Bxe4 {[%clk 0:00:46]} 20. Nc3 {[%clk 0:01:28]}  Bc6 {[%clk 0:00:36]} 21. Ncd5 {[%clk 0:01:23]}  Nfe5 {[%clk 0:00:30]} 22. g5 {[%clk 0:01:06]}  h5 {[%clk 0:00:27]} 23. Nf6+ {[%clk 0:01:02]}  exf6 {[%clk 0:00:13]} 24. Bxc6 {[%clk 0:01:02]}  Nxc6 {[%clk 0:00:13]} 25. Rxd6 {[%clk 0:01:02]}  Nce5 {[%clk 0:00:12]} 26. Rhd1 {[%clk 0:00:58]}  Qc7 {[%clk 0:00:03]} 27. Qa3 {[%clk 0:00:48]}  Nxb6 {[%clk 0:00:02]} 28. cxb6 {[%clk 0:00:49]}  Qb7 {[%clk 0:00:02]} 29. Qb3 {[%clk 0:00:40]}  fxg5 {[%clk 0:00:02]} 30. hxg5 {[%clk 0:00:39]}  Rbe8 {[%clk 0:00:00]} 31. Bc5 {[%clk 0:00:39]} 1-0


[Site "https://www.chess.com"]

[Event "Titled Tuesday Blitz June 13 Late 2023"]
[White "Papayan, Oleg"]
[Black "zano2023"]
[WhiteFideId "4193911"]
[WhiteElo "2167"]
[BlackElo "2094"]
[Result "1-0"]
[Round "4"]
[TimeControl "180+2"]
[Date "2023.06.13"]
[WhiteClock "0:00:23"]
[BlackClock "0:00:02"]
[Board "162"]

1. e4 {[%clk 0:03:00]}  e5 {[%clk 0:02:58]} 2. Nf3 {[%clk 0:03:00]}  d6 {[%clk 0:02:56]} 3. d4 {[%clk 0:03:00]}  f5 {[%clk 0:02:57]} 4. exf5 {[%clk 0:02:57]}  e4 {[%clk 0:02:56]} 5. Ng5 {[%clk 0:02:54]}  Bxf5 {[%clk 0:02:56]} 6. d5 {[%clk 0:02:43]}  h6 {[%clk 0:02:47]} 7. Ne6 {[%clk 0:02:21]}  Bxe6 {[%clk 0:02:47]} 8. dxe6 {[%clk 0:02:22]}  Nf6 {[%clk 0:02:46]} 9. c4 {[%clk 0:02:09]}  c6 {[%clk 0:02:39]} 10. Nc3 {[%clk 0:02:08]}  d5 {[%clk 0:02:33]} 11. cxd5 {[%clk 0:02:09]}  cxd5 {[%clk 0:02:33]} 12. Bb5+ {[%clk 0:02:05]}  Nc6 {[%clk 0:02:32]} 13. Qa4 {[%clk 0:02:05]}  Qd6 {[%clk 0:02:16]} 14. Bf4 {[%clk 0:02:04]}  Qxe6 {[%clk 0:01:41]} 15. O-O-O {[%clk 0:02:04]}  Be7 {[%clk 0:01:22]} 16. f3 {[%clk 0:01:51]}  a6 {[%clk 0:01:06]} 17. fxe4 {[%clk 0:01:41]}  Nxe4 {[%clk 0:01:05]} 18. Nxd5 {[%clk 0:01:31]}  Rc8 {[%clk 0:00:39]} 19. Bxc6+ {[%clk 0:01:00]}  Rxc6+ {[%clk 0:00:37]} 20. Kb1 {[%clk 0:00:55]}  O-O {[%clk 0:00:36]} 21. Rhe1 {[%clk 0:00:43]}  Qg4 {[%clk 0:00:24]} 22. Nxe7+ {[%clk 0:00:41]}  Kh8 {[%clk 0:00:22]} 23. Nxc6 {[%clk 0:00:39]}  Rxf4 {[%clk 0:00:19]} 24. Ne5 {[%clk 0:00:33]}  Qf5 {[%clk 0:00:16]} 25. Qe8+ {[%clk 0:00:32]}  Kh7 {[%clk 0:00:16]} 26. Nd3 {[%clk 0:00:29]}  Nd6 {[%clk 0:00:10]} 27. Qe6 {[%clk 0:00:23]}  Qxe6 {[%clk 0:00:04]} 28. Rxe6 {[%clk 0:00:23]}  Nc4 {[%clk 0:00:02]} 29. Nxf4 {[%clk 0:00:23]} 1-0


[Site "https://www.chess.com"]

[Event "Titled Tuesday Blitz June 13 Late 2023"]
[White "Lopez Perdomo, Juan David"]
[Black "Seletsky, Grigory"]
[WhiteFideId "4405137"]
[BlackFideId "14112191"]
[WhiteElo "1965"]
[BlackElo "2491"]
[Result "0-1"]
[Round "4"]
[TimeControl "180+2"]
[Date "2023.06.13"]
[WhiteClock "0:00:12"]
[BlackClock "0:00:50"]
[Board "163"]

1. d4 {[%clk 0:03:00]}  c5 {[%clk 0:03:00]} 2. d5 {[%clk 0:02:56]}  e5 {[%clk 0:03:00]} 3. dxe6 {[%clk 0:02:54]}  fxe6 {[%clk 0:02:58]} 4. e4 {[%clk 0:02:53]}  Nc6 {[%clk 0:02:57]} 5. Nc3 {[%clk 0:02:46]}  Nf6 {[%clk 0:02:54]} 6. Bg5 {[%clk 0:02:44]}  Be7 {[%clk 0:02:52]} 7. Nf3 {[%clk 0:02:40]}  O-O {[%clk 0:02:51]} 8. a3 {[%clk 0:02:34]}  a6 {[%clk 0:02:47]} 9. Bc4 {[%clk 0:02:35]}  b5 {[%clk 0:02:47]} 10. Ba2 {[%clk 0:02:35]}  c4 {[%clk 0:02:46]} 11. b3 {[%clk 0:02:33]}  b4 {[%clk 0:02:36]} 12. Ne2 {[%clk 0:01:57]}  Nxe4 {[%clk 0:02:27]} 13. Bxe7 {[%clk 0:01:58]}  Qxe7 {[%clk 0:02:26]} 14. bxc4 {[%clk 0:01:56]}  bxa3 {[%clk 0:02:21]} 15. Qd3 {[%clk 0:01:53]}  Ng5 {[%clk 0:01:59]} 16. Nxg5 {[%clk 0:01:41]}  Qxg5 {[%clk 0:01:59]} 17. O-O {[%clk 0:01:22]}  Rf7 {[%clk 0:01:42]} 18. Ng3 {[%clk 0:01:13]}  Nb4 {[%clk 0:01:22]} 19. Qe4 {[%clk 0:00:44]}  Rb8 {[%clk 0:01:13]} 20. Bb3 {[%clk 0:00:43]}  Bb7 {[%clk 0:01:11]} 21. Qe1 {[%clk 0:00:41]}  Qc5 {[%clk 0:01:04]} 22. Qd2 {[%clk 0:00:20]}  Rbf8 {[%clk 0:01:02]} 23. Rxa3 {[%clk 0:00:13]}  a5 {[%clk 0:00:53]} 24. c3 {[%clk 0:00:11]}  Na6 {[%clk 0:00:52]} 25. Ra2 {[%clk 0:00:12]}  Qc6 {[%clk 0:00:51]} 26. Ba4 {[%clk 0:00:12]}  Qxg2# {[%clk 0:00:50]} 0-1


[Site "https://www.chess.com"]

[Event "Titled Tuesday Blitz June 13 Late 2023"]
[White "liwadas82"]
[Black "Ziatdinov, Raset"]
[BlackFideId "2015323"]
[WhiteElo "2443"]
[BlackElo "2220"]
[Result "1-0"]
[Round "4"]
[TimeControl "180+2"]
[Date "2023.06.13"]
[WhiteClock "0:00:22"]
[BlackClock "0:00:00"]
[Board "165"]

1. e4 {[%clk 0:03:00]}  e6 {[%clk 0:02:35]} 2. d4 {[%clk 0:03:00]}  d5 {[%clk 0:02:36]} 3. Nd2 {[%clk 0:03:00]}  c5 {[%clk 0:02:35]} 4. Ngf3 {[%clk 0:03:00]}  cxd4 {[%clk 0:02:35]} 5. exd5 {[%clk 0:02:59]}  exd5 {[%clk 0:02:33]} 6. Nxd4 {[%clk 0:02:53]}  Nf6 {[%clk 0:02:32]} 7. N2f3 {[%clk 0:02:47]}  Bd6 {[%clk 0:02:31]} 8. Bb5+ {[%clk 0:02:43]}  Bd7 {[%clk 0:02:31]} 9. Bxd7+ {[%clk 0:02:40]}  Nbxd7 {[%clk 0:02:31]} 10. Nf5 {[%clk 0:02:29]}  O-O {[%clk 0:02:04]} 11. O-O {[%clk 0:02:15]}  Bc7 {[%clk 0:01:57]} 12. Bg5 {[%clk 0:02:14]}  h6 {[%clk 0:01:57]} 13. Bh4 {[%clk 0:02:14]}  Ne5 {[%clk 0:01:42]} 14. Re1 {[%clk 0:02:02]}  Ng6 {[%clk 0:01:06]} 15. Bg3 {[%clk 0:01:53]}  Bxg3 {[%clk 0:01:04]} 16. hxg3 {[%clk 0:01:54]}  Qd7 {[%clk 0:01:02]} 17. N3d4 {[%clk 0:01:48]}  Rfe8 {[%clk 0:01:00]} 18. Qf3 {[%clk 0:01:46]}  Ne4 {[%clk 0:01:00]} 19. g4 {[%clk 0:01:37]}  Ng5 {[%clk 0:00:54]} 20. Qg3 {[%clk 0:01:26]}  Re4 {[%clk 0:00:53]} 21. f3 {[%clk 0:01:21]}  Rxe1+ {[%clk 0:00:43]} 22. Rxe1 {[%clk 0:01:22]}  Re8 {[%clk 0:00:43]} 23. Kf1 {[%clk 0:01:10]}  a6 {[%clk 0:00:41]} 24. Qd6 {[%clk 0:01:02]}  Rxe1+ {[%clk 0:00:26]} 25. Kxe1 {[%clk 0:01:03]}  Qxd6 {[%clk 0:00:13]} 26. Nxd6 {[%clk 0:01:02]}  b5 {[%clk 0:00:14]} 27. Kf2 {[%clk 0:00:52]}  Kf8 {[%clk 0:00:14]} 28. N4f5 {[%clk 0:00:44]}  Ne6 {[%clk 0:00:13]} 29. g3 {[%clk 0:00:40]}  Ne7 {[%clk 0:00:13]} 30. Ke3 {[%clk 0:00:37]}  Nc6 {[%clk 0:00:12]} 31. c3 {[%clk 0:00:35]}  Kg8 {[%clk 0:00:08]} 32. Nc8 {[%clk 0:00:27]}  Kh7 {[%clk 0:00:05]} 33. Nce7 {[%clk 0:00:26]}  Ne5 {[%clk 0:00:02]} 34. b3 {[%clk 0:00:22]}  g6 {[%clk 0:00:00]} 35. Nd6 {[%clk 0:00:22]} 1-0


[Site "https://www.chess.com"]